fUSD/lending_fUSD_20250414
["ID","MTS","AMOUNT","RATE_DAILY","PERIOD"]
[357934048,1744597843447,-164.52,0.00019584,2]
[357934049,1744597843456,-888.6,0.00019726,2]
[357934050,1744597843466,-1351.1,0.00019726,2]
[357934051,1744597843475,-232.75215189,0.00019726,2]
[357934052,1744597843484,-437.54108943,0.00019726,2]
[357934053,1744597843493,-423.46813771,0.00019726,2]
[357934054,1744597843503,-2388.64,0.00019726,2]
[357934055,1744597843512,-500.0,0.00019726,2]
[357934056,1744597843521,-500.0,0.00019726,2]
[357934057,1744597843531,-500.0,0.00019726,2]
[357934058,1744597843541,-500.0,0.00019726,2]
[357934059,1744597843550,-202.0,0.0001979,2]
[357934060,1744597843560,-504.233,0.000199,2]
[357934061,1744597843569,-340.62836273,0.000199,2]
[357934062,1744597843579,-5000.0,0.000199,2]
[357934063,1744597843589,-166.64346978,0.000199,2]
[357934064,1744597843599,-234.6228721,0.0001995,2]
[357934065,1744597843608,-500.0,0.00019973,2]
[357934066,1744597843618,-58146.06050254,0.0001998,2]
[357934081,1744597845406,-403.1041437,0.0001998,2]
[357934083,1744597846438,-49544.16518502,0.0001998,2]
[357934084,1744597846449,-500.0,0.00019986,2]
[357934085,1744597846460,-866.7183994,0.00019986,2]
[357934086,1744597846470,-708.5828524,0.00019986,2]
[357934087,1744597846479,-9410.5401753,0.00019986,2]
[357934088,1744597846490,-196.58525074,0.0001999,2]
[357934089,1744597846500,-178.1178352,0.00019995,2]
[357934090,1744597846511,-791.0,0.00019997,2]
[357934091,1744597846521,-1279.0,0.00019997,2]
[357934092,1744597846530,-545.0,0.00019997,2]
[357934093,1744597846540,-1438.0,0.00019997,2]
[357934094,1744597846550,-907.0,0.00019997,2]
[357934095,1744597846559,-578.686,0.00019997,2]
[357934096,1744597846569,-4148.0,0.00019997,2]
[357934097,1744597846579,-1287.0,0.00019997,2]
[357934098,1744597846590,-3964.0,0.00019997,2]
[357934099,1744597846600,-152.0,0.00019997,2]
[357934100,1744597846610,-1328.036,0.00019997,2]
[357934101,1744597846620,-2047.0,0.00019997,2]
[357934102,1744597846630,-150.175,0.00019999,2]
[357934103,1744597846639,-150.0,0.00019999,2]
[357934104,1744597846649,-283.516,0.00019999,2]
[357934105,1744597846659,-150.0,0.00019999,2]
[357934106,1744597846668,-150.05,0.00019999,2]
[357934107,1744597846679,-332.92713563,0.00019999,2]
[357934108,1744597846688,-187.75974797,0.00019999,2]
[357934109,1744597846698,-186.9543861,0.00019999,2]
[357934110,1744597846708,-178.21732609,0.00019999,2]
[357934111,1744597846717,-225.0,0.00019999,2]
[357934112,1744597846727,-500.0,0.00019999,2]
[357934113,1744597846737,-250.0,0.00019999,2]
[357934114,1744597846747,-500.0,0.00019999,2]
[357934115,1744597846756,-450.84042753,0.00019999,2]
[357934116,1744597846767,-300.0,0.00019999,2]
[357934117,1744597846776,-467.48885631,0.00019999,2]
[357934118,1744597846786,-632.0,0.0002,2]
[357934120,1744597846796,-87930.66057173,0.0002,2]
[357934189,1744597956201,150.406032,0.0002,7]
[357934190,1744597956498,150.406032,0.00019875,7]
[357934191,1744597956804,150.406032,0.000221,30]
[357934192,1744597957512,150.406032,0.000221,30]
[357934193,1744597958791,150.406032,0.0002,3]
[357934194,1744597959090,150.406032,0.00019875,3]
[357934195,1744598002863,2000.0,0.00019,6]
[357934196,1744598004951,4100.0,0.000191,6]
[357934197,1744598007041,6200.0,0.000192,7]
[357934198,1744598009237,8300.0,0.000193,7]
[357934199,1744598011463,10300.0,0.000194,7]
[357934200,1744598013404,2000.0,0.000195,7]
[357934201,1744598015494,2000.0,0.000196,7]
[357934202,1744598017577,2000.0,0.000197,7]
[357934203,1744598019655,2000.0,0.000198,7]
[357934204,1744598021792,2628.0,0.000199,7]
[357934205,1744598027961,-505.30634177,0.00017379,2]
[357934206,1744598124800,-150.0,0.00017379,2]
[357934207,1744598340057,-186.38050433,0.00017379,2]
[357934208,1744598343435,3000.0,0.0001678,2]
[357934209,1744598345663,-124.8831539,0.00017379,2]
[357934210,1744598345687,-69.2568461,0.00017876,2]
[357934211,1744598432445,-159.87000012,0.00017776,2]
[357934212,1744598432469,-630.7431539,0.00017876,2]
[357934213,1744598432492,-1100.0,0.00017876,2]
[357934214,1744598432517,-2786.56584598,0.00017876,2]
[357934215,1744598463756,-154.15,0.0001776,2]
[357934216,1744598508174,-68.84,0.0001776,2]
[357934217,1744598508199,-165.42865,0.00017876,2]
[357934218,1744598525347,1752.81,0.000196,3]
[357934219,1744598575260,-48.00550402,0.00017876,2]
[357934220,1744598575290,-177.34577534,0.00017876,2]
[357934221,1744598575314,-142.22326412,0.00017876,2]
[357934222,1744598617377,-168.30202872,0.00017876,2]
[357934223,1744598686731,159.77684727,0.000221,30]
[357934224,1744598745049,3000.0,0.0001678,2]
[357934225,1744598749422,-222.49753577,0.00017876,2]
[357934226,1744598763706,-174.44797128,0.00017875,2]
[357934227,1744598773958,200.0,0.00018079,7]
[357934228,1744598807144,-125.55202872,0.00017875,2]
[357934229,1744598807169,-66.97717139,0.00017876,2]
[357934230,1744598807461,-74.34609617,0.00017876,2]
[357934231,1744598838096,-150.0,0.00017876,2]
[357934232,1744598866192,-300.0,0.00017876,2]
[357934233,1744598974813,-190.16923044,0.00017876,2]
[357934234,1744599007899,-150.0,0.00017862,2]
[357934235,1744599017357,-161.37,0.00017862,2]
[357934239,1744599031416,-155.57780133,0.00017862,2]
[357934240,1744599031429,-285.48467339,0.00017876,2]
[357934241,1744599031439,-3000.0,0.00017876,2]
[357934242,1744599031449,-159.87000011,0.00017976,2]
[357934243,1744599031458,-862.66927639,0.00018059,2]
[357934244,1744599031469,-854.83398,0.00018059,2]
[357934245,1744599031486,-2250.77674361,0.00018059,2]
[357934246,1744599031497,-1000.0,0.00018076,2]
[357934247,1744599031507,-267.5,0.00018079,2]
[357934248,1744599031516,-161.22,0.00018263,2]
[357934249,1744599031526,-200.0,0.00018267,2]
[357934250,1744599031536,-250.0,0.00018302,2]
[357934251,1744599031546,-1618.610557,0.00018677,2]
[357934252,1744599031555,-300.0,0.00018726,2]
[357934253,1744599031564,-207.01,0.00018771,2]
[357934254,1744599031574,-207.01,0.00018776,2]
[357934255,1744599031583,-207.01,0.00018781,2]
[357934256,1744599031593,-207.01,0.00018786,2]
[357934257,1744599031603,-207.01,0.00018791,2]
[357934258,1744599031612,-207.01,0.00018796,2]
[357934259,1744599031622,-207.01,0.00018801,2]
[357934260,1744599031632,-207.01,0.00018806,2]
[357934261,1744599031642,-207.01,0.00018811,2]
[357934262,1744599031652,-207.01,0.00018816,2]
[357934263,1744599031662,-207.01,0.00018821,2]
[357934264,1744599031671,-150.0,0.00018822,2]
[357934265,1744599031681,-207.01,0.00018826,2]
[357934266,1744599031691,-207.01,0.0001883,2]
[357934267,1744599031701,-207.01,0.00018835,2]
[357934268,1744599031710,-207.01,0.0001884,2]
[357934270,1744599031720,-307.0,0.00018845,2]
[357934272,1744599031729,-207.01,0.00018845,2]
[357934274,1744599031739,-207.01,0.0001885,2]
[357934276,1744599031750,-207.01,0.00018855,2]
[357934279,1744599031761,-207.01,0.0001886,2]
[357934280,1744599031770,-207.01,0.00018865,2]
[357934282,1744599031780,-3019.66,0.00018887,2]
[357934285,1744599031790,-1000.0,0.00018972,2]
[357934287,1744599031799,-3000.0,0.00018972,2]
[357934289,1744599031809,-600.0,0.00018972,2]
[357934290,1744599031818,-423.61,0.00019036,2]
[357934293,1744599031828,-359.37,0.00019061,2]
[357934294,1744599031838,-159.8982338,0.00019173,2]
[357934296,1744599031848,-500.0,0.00019178,2]
[357934298,1744599031858,-500.84098709,0.00019178,2]
[357934300,1744599031867,-504.21847831,0.00019178,2]
[357934302,1744599031877,-500.0,0.00019178,2]
[357934304,1744599031887,-502.87083842,0.00019178,2]
[357934306,1744599031897,-506.49805835,0.00019178,2]
[357934308,1744599031907,-503.47071071,0.00019178,2]
[357934310,1744599031918,-504.14973524,0.00019178,2]
[357934312,1744599031928,-502.65235113,0.00019178,2]
[357934314,1744599031937,-501.03545886,0.00019178,2]
[357934316,1744599031948,-500.86335251,0.00019178,2]
[357934318,1744599031957,-616.34391636,0.00019178,2]
[357934320,1744599031967,-504.16270784,0.00019178,2]
[357934323,1744599031978,-500.16656724,0.00019178,2]
[357934324,1744599031988,-506.96497994,0.00019178,2]
[357934327,1744599032005,-504.09933579,0.00019178,2]
[357934329,1744599032015,-502.28164318,0.00019178,2]
[357934331,1744599032026,-502.85953141,0.00019178,2]
[357934333,1744599032036,-502.12587989,0.00019178,2]
[357934334,1744599032046,-502.06237333,0.00019178,2]
[357934337,1744599032055,-505.2949297,0.00019178,2]
[357934339,1744599032066,-503.87211981,0.00019178,2]
[357934341,1744599032076,-502.49721963,0.00019178,2]
[357934343,1744599032086,-504.28103568,0.00019178,2]
[357934344,1744599032096,-503.67907722,0.00019178,2]
[357934346,1744599032106,-507.81623254,0.00019178,2]
[357934348,1744599032116,-323.92182536,0.00019178,2]
[357934349,1744599032126,-500.27099507,0.00019178,2]
[357934352,1744599032136,-504.13935346,0.00019178,2]
[357934353,1744599032146,-500.0,0.00019178,2]
[357934355,1744599032156,-500.39270272,0.00019178,2]
[357934358,1744599032166,-266.73467848,0.00019178,2]
[357934359,1744599032176,-500.50091865,0.00019178,2]
[357934361,1744599032187,-500.65834336,0.00019178,2]
[357934363,1744599032197,-501.78661087,0.00019178,2]
[357934364,1744599032207,-612.6449041,0.00019178,2]
[357934365,1744599032216,-500.31849822,0.00019178,2]
[357934366,1744599032226,-500.27805642,0.00019178,2]
[357934367,1744599032236,-500.72516495,0.00019178,2]
[357934368,1744599032249,-500.6258184,0.00019178,2]
[357934369,1744599032259,-501.4664496,0.00019178,2]
[357934370,1744599032269,-505.9551422,0.00019178,2]
[357934371,1744599032279,-575.25777418,0.00019178,2]
[357934372,1744599032288,-502.98815783,0.00019178,2]
[357934373,1744599032298,-509.39285436,0.00019178,2]
[357934374,1744599032308,-501.40431049,0.00019178,2]
[357934375,1744599032318,-501.13487061,0.00019178,2]
[357934376,1744599032328,-777.53,0.00019178,2]
[357934377,1744599032338,-515.12173725,0.00019178,2]
[357934378,1744599032348,-523.38579234,0.00019178,2]
[357934379,1744599032360,-175.80646513,0.00019178,2]
[357934380,1744599032374,-341.69091177,0.00019178,2]
[357934381,1744599032384,-516.36969729,0.00019178,2]
[357934382,1744599032393,-495.1298906,0.00019178,2]
[357934383,1744599032423,-8.88851621,0.00019178,2]
[357934384,1744599032449,-142.19638359,0.00019178,2]
[357934385,1744599032462,-357.80361641,0.00019178,2]
[357934386,1744599032472,-536.32910845,0.00019178,2]
[357934387,1744599032482,-527.05411545,0.00019178,2]
[357934388,1744599032494,-484.25401014,0.00019178,2]
[357934389,1744599032506,-23.93719491,0.00019178,2]
[357934390,1744599032516,-500.0,0.00019178,2]
[357934391,1744599032526,-500.0,0.00019178,2]
[357934392,1744599032535,-513.67953147,0.00019178,2]
[357934393,1744599032545,-570.59926106,0.00019178,2]
[357934394,1744599032554,-414.99984696,0.00019178,2]
[357934395,1744599032566,-111.20713802,0.00019178,2]
[357934396,1744599032576,-361.93659158,0.00019178,2]
[357934397,1744599032588,-155.27182829,0.00019178,2]
[357934398,1744599032598,-512.28572392,0.00019178,2]
[357934399,1744599032607,-314.44339991,0.00019178,2]
[357934400,1744599032619,-202.20508479,0.00019178,2]
[357934401,1744599032629,-500.0,0.00019178,2]
[357934402,1744599032639,-500.0,0.00019178,2]
[357934403,1744599032648,-518.35936665,0.00019178,2]
[357934404,1744599032659,-525.48219162,0.00019178,2]
[357934405,1744599032669,-527.58709286,0.00019178,2]
[357934406,1744599032679,-520.84921109,0.00019178,2]
[357934407,1744599032688,-543.83413657,0.00019178,2]
[357934408,1744599032698,-554.21026994,0.00019178,2]
[357934409,1744599032707,-516.68219025,0.00019178,2]
[357934410,1744599032716,-334.32254166,0.00019178,2]
[357934411,1744599032725,-529.7854657,0.00019178,2]
[357934412,1744599032735,-500.0,0.00019178,2]
[357934413,1744599032745,-527.5194249,0.00019178,2]
[357934414,1744599032754,-500.0,0.00019178,2]
[357934415,1744599032764,-518.92170445,0.00019178,2]
[357934416,1744599032773,-518.25997712,0.00019178,2]
[357934417,1744599032783,-500.0,0.00019178,2]
[357934418,1744599032793,-432.48789436,0.00019178,2]
[357934419,1744599032803,-511.21949467,0.00019178,2]
[357934420,1744599032813,-542.31590565,0.00019178,2]
[357934421,1744599032822,-521.15071983,0.00019178,2]
[357934422,1744599032832,-522.60786309,0.00019178,2]
[357934423,1744599032842,-524.71959785,0.00019178,2]
[357934424,1744599032852,-506.00701794,0.00019178,2]
[357934425,1744599032862,-519.34026303,0.00019178,2]
[357934426,1744599032876,-507.78581908,0.00019178,2]
[357934427,1744599032886,-519.49129496,0.00019178,2]
[357934428,1744599032896,-529.16027234,0.00019178,2]
[357934429,1744599032906,-516.28091253,0.00019178,2]
[357934430,1744599032916,-516.12100116,0.00019178,2]
[357934431,1744599032925,-519.58413521,0.00019178,2]
[357934432,1744599032935,-509.47663921,0.00019178,2]
[357934433,1744599032944,-576.54957165,0.00019178,2]
[357934434,1744599032954,-510.60202069,0.00019178,2]
[357934435,1744599032965,-500.0,0.00019178,2]
[357934436,1744599032975,-500.0,0.00019178,2]
[357934437,1744599032984,-1182.21,0.00019178,2]
[357934438,1744599032995,-504.22623047,0.00019178,2]
[357934439,1744599033005,-522.66280742,0.00019178,2]
[357934440,1744599033015,-506.66504006,0.00019178,2]
[357934441,1744599033025,-501.84450543,0.00019178,2]
[357934442,1744599033036,-500.0,0.00019178,2]
[357934443,1744599033046,-512.25377312,0.00019178,2]
[357934444,1744599033056,-531.78269594,0.00019178,2]
[357934445,1744599033065,-519.73240774,0.00019178,2]
[357934446,1744599033076,-609.41008076,0.00019178,2]
[357934447,1744599033086,-507.60460129,0.00019178,2]
[357934448,1744599033096,-411.7435871,0.00019178,2]
[357934449,1744599033107,-518.43933015,0.00019178,2]
[357934450,1744599033117,-535.95887443,0.00019178,2]
[357934451,1744599033127,-526.18233221,0.00019178,2]
[357934452,1744599033137,-500.0,0.00019178,2]
[357934453,1744599033147,-542.58386395,0.00019178,2]
[357934454,1744599033157,-515.95941359,0.00019178,2]
[357934455,1744599033167,-526.29634956,0.00019178,2]
[357934456,1744599033177,-519.58763824,0.00019178,2]
[357934457,1744599033189,-535.77818832,0.00019178,2]
[357934458,1744599033199,-500.0,0.00019178,2]
[357934459,1744599033210,-527.37817758,0.00019178,2]
[357934460,1744599033220,-508.06558344,0.00019178,2]
[357934461,1744599033230,-500.0,0.00019178,2]
[357934462,1744599033240,-500.0,0.00019178,2]
[357934463,1744599033253,-513.58179481,0.00019178,2]
[357934464,1744599033263,-576.02412326,0.00019178,2]
[357934465,1744599033274,-519.54173446,0.00019178,2]
[357934466,1744599033285,-628.9925814,0.00019178,2]
[357934467,1744599033295,-512.58993929,0.00019178,2]
[357934468,1744599033304,-515.51857306,0.00019178,2]
[357934469,1744599033313,-523.52883349,0.00019178,2]
[357934470,1744599033322,-509.4436176,0.00019178,2]
[357934471,1744599033332,-556.34358778,0.00019178,2]
[357934472,1744599033346,-513.421372,0.00019178,2]
[357934473,1744599033357,-492.50976321,0.00019178,2]
[357934474,1744599033367,-456.05907331,0.00019178,2]
[357934475,1744599033377,-534.85837162,0.00019178,2]
[357934476,1744599033390,-511.21794481,0.00019178,2]
[357934477,1744599033400,-539.09285282,0.00019178,2]
[357934478,1744599033409,-500.0,0.00019178,2]
[357934479,1744599033419,-511.83149984,0.00019178,2]
[357934480,1744599033430,-515.87149605,0.00019178,2]
[357934481,1744599033443,-346.53330856,0.00019178,2]
[357934482,1744599033452,-560.33807145,0.00019178,2]
[357934483,1744599033462,-500.0,0.00019178,2]
[357934484,1744599033472,-540.2224889,0.00019178,2]
[357934485,1744599033481,-514.96696191,0.00019178,2]
[357934486,1744599033491,-504.25962748,0.00019178,2]
[357934487,1744599033502,-506.10071172,0.00019178,2]
[357934488,1744599033512,-395.53278193,0.00019178,2]
[357934489,1744599033522,-524.42527665,0.00019178,2]
[357934490,1744599033531,-500.0,0.00019178,2]
[357934491,1744599033541,-505.85009578,0.00019178,2]
[357934492,1744599033551,-513.46167513,0.00019178,2]
[357934493,1744599033561,-606.61519685,0.00019178,2]
[357934494,1744599033571,-514.53024236,0.00019178,2]
[357934495,1744599033581,-535.21983343,0.00019178,2]
[357934496,1744599033592,-520.66980404,0.00019178,2]
[357934497,1744599033603,-503.29880155,0.00019178,2]
[357934498,1744599033613,-555.95061543,0.00019178,2]
[357934499,1744599033624,-534.23808548,0.00019178,2]
[357934500,1744599033634,-517.64989634,0.00019178,2]
[357934501,1744599033646,-531.51597577,0.00019178,2]
[357934502,1744599033657,-525.09118386,0.00019178,2]
[357934503,1744599033668,-525.10901856,0.00019178,2]
[357934504,1744599033678,-589.75961095,0.00019178,2]
[357934505,1744599033690,-14.28467459,0.00019178,2]
[357934506,1744599033705,-387.13222533,0.00019178,2]
[357934508,1744599037515,-121.26754348,0.00019178,2]
[357934509,1744599037525,-428.23776031,0.00019178,2]
[357934510,1744599037674,-76.41089166,0.00019178,2]
[357934511,1744599037685,-511.12369445,0.00019178,2]
[357934512,1744599037695,-535.64857351,0.00019178,2]
[357934513,1744599037706,-530.31469823,0.00019178,2]
[357934514,1744599037715,-507.25122682,0.00019178,2]
[357934515,1744599037726,-515.44920324,0.00019178,2]
[357934516,1744599037736,-519.80344533,0.00019178,2]
[357934517,1744599037746,-83.73127122,0.00019178,2]
[357934518,1744599037761,-442.16445897,0.00019178,2]
[357934519,1744599037771,-576.18503755,0.00019178,2]
[357934520,1744599037781,-527.52991898,0.00019178,2]
[357934521,1744599037791,-516.71416535,0.00019178,2]
[357934522,1744599037801,-607.90929475,0.00019178,2]
[357934523,1744599037810,-524.46007521,0.00019178,2]
[357934524,1744599037820,-500.0,0.00019178,2]
[357934525,1744599037830,-500.0,0.00019178,2]
[357934526,1744599037839,-516.49063189,0.00019178,2]
[357934527,1744599037849,-500.0,0.00019178,2]
[357934528,1744599037859,-500.0,0.00019178,2]
[357934529,1744599037868,-532.92732066,0.00019178,2]
[357934530,1744599037876,-509.30893405,0.00019178,2]
[357934531,1744599037885,-517.01197196,0.00019178,2]
[357934532,1744599037895,-500.0,0.00019178,2]
[357934533,1744599037904,-541.36343693,0.00019178,2]
[357934534,1744599037914,-508.72905925,0.00019178,2]
[357934535,1744599037924,-565.57103892,0.00019178,2]
[357934536,1744599037934,-608.0779036,0.00019178,2]
[357934537,1744599037943,-511.39764188,0.00019178,2]
[357934538,1744599037952,-539.6538328,0.00019178,2]
[357934539,1744599037962,-522.46038256,0.00019178,2]
[357934540,1744599037972,-529.97231892,0.00019178,2]
[357934541,1744599037982,-521.11706043,0.00019178,2]
[357934542,1744599037992,-513.38125148,0.00019178,2]
[357934543,1744599038003,-513.20266798,0.00019178,2]
[357934544,1744599038013,-511.34136429,0.00019178,2]
[357934545,1744599038023,-628.19210448,0.00019178,2]
[357934546,1744599038033,-518.57703926,0.00019178,2]
[357934547,1744599038043,-526.96041092,0.00019178,2]
[357934548,1744599038052,-518.44138119,0.00019178,2]
[357934549,1744599038062,-518.70007533,0.00019178,2]
[357934550,1744599038071,-523.152144,0.00019178,2]
[357934551,1744599038081,-535.28897618,0.00019178,2]
[357934552,1744599038090,-524.15520614,0.00019178,2]
[357934553,1744599038100,-562.34537379,0.00019178,2]
[357934555,1744599038110,-500.0,0.00019178,2]
[357934557,1744599038120,-502.96967486,0.00019178,2]
[357934558,1744599038130,-507.50797419,0.00019178,2]
[357934559,1744599038139,-515.8592045,0.00019178,2]
[357934560,1744599038147,-619.36576898,0.00019178,2]
[357934561,1744599038156,-519.56061663,0.00019178,2]
[357934562,1744599038166,-516.30667691,0.00019178,2]
[357934563,1744599038176,-516.11788427,0.00019178,2]
[357934564,1744599038186,-512.51850446,0.00019178,2]
[357934565,1744599038195,-551.08917758,0.00019178,2]
[357934566,1744599038205,-552.36,0.00019178,2]
[357934567,1744599038214,-525.27744109,0.00019178,2]
[357934568,1744599038224,-514.49839642,0.00019178,2]
[357934569,1744599038234,-553.1050808,0.00019178,2]
[357934570,1744599038243,-500.37609689,0.00019178,2]
[357934571,1744599038255,-517.87552094,0.00019178,2]
[357934572,1744599038264,-500.0,0.00019178,2]
[357934573,1744599038274,-506.91069094,0.00019178,2]
[357934574,1744599038284,-5056.17,0.00019178,2]
[357934575,1744599038294,-500.0,0.00019178,2]
[357934576,1744599038303,-502.74995292,0.00019178,2]
[357934577,1744599038313,-500.0,0.00019178,2]
[357934578,1744599038492,-500.0,0.00019178,2]
[357934579,1744599038504,-1136.05129862,0.00019178,2]
[357934580,1744599038514,-618.44667889,0.00019178,2]
[357934581,1744599038525,-500.0,0.00019178,2]
[357934582,1744599038535,-327.65735476,0.00019178,2]
[357934583,1744599038544,-500.0,0.00019178,2]
[357934584,1744599038554,-500.0,0.00019178,2]
[357934585,1744599038564,-500.0,0.00019178,2]
[357934586,1744599038574,-500.0,0.00019178,2]
[357934587,1744599038584,-500.0,0.00019178,2]
[357934588,1744599038594,-500.0,0.00019178,2]
[357934589,1744599038603,-500.0,0.00019178,2]
[357934590,1744599038613,-500.0,0.00019178,2]
[357934591,1744599038622,-500.0,0.00019178,2]
[357934592,1744599038631,-563.79102256,0.00019178,2]
[357934593,1744599038641,-503.06295398,0.00019178,2]
[357934594,1744599038651,-573.21021521,0.00019178,2]
[357934595,1744599038662,-500.0,0.00019178,2]
[357934596,1744599038672,-500.0,0.00019178,2]
[357934597,1744599038681,-521.44708102,0.00019178,2]
[357934598,1744599038691,-764.31,0.00019335,2]
[357934599,1744599038701,-200.0,0.00019373,2]
[357934600,1744599038711,-157.3376805,0.00019399,2]
[357934601,1744599038721,-777.53,0.00019452,2]
[357934602,1744599038733,-500.0,0.00019452,2]
[357934603,1744599038743,-500.0,0.00019452,2]
[357934604,1744599038757,-361.17925039,0.00019452,2]
[357934605,1744599038768,-531.60432545,0.00019452,2]
[357934606,1744599038778,-500.0,0.00019452,2]
[357934607,1744599038788,-176.61182533,0.00019452,2]
[357934608,1744599038799,-500.0,0.00019452,2]
[357934609,1744599038809,-528.46,0.00019452,2]
[357934610,1744599038819,-37.1761749,0.00019452,2]
[357934611,1744599038840,-191.90460959,0.00019452,2]
[357934612,1744599038850,-1182.21,0.00019452,2]
[357934613,1744599038860,-500.0,0.00019452,2]
[357934614,1744599038870,-587.4145899,0.00019452,2]
[357934615,1744599038880,-532.59441902,0.00019452,2]
[357934616,1744599038890,-583.99572744,0.00019452,2]
[357934617,1744599038900,-532.04199109,0.00019452,2]
[357934618,1744599038910,-500.0,0.00019452,2]
[357934619,1744599038921,-157.21338888,0.00019452,2]
[357934620,1744599038931,-162.28744394,0.00019452,2]
[357934621,1744599038941,-178.70965165,0.00019452,2]
[357934622,1744599038950,-500.0,0.00019452,2]
[357934623,1744599038960,-613.78335318,0.00019452,2]
[357934624,1744599038970,-500.0,0.00019452,2]
[357934625,1744599038979,-462.43158833,0.00019452,2]
[357934626,1744599038989,-270.23715244,0.00019452,2]
[357934627,1744599038998,-1262.27608454,0.00019452,2]
[357934628,1744599039012,-3793.89391546,0.00019452,2]
[357934629,1744599039021,-500.0,0.00019452,2]
[357934630,1744599039031,-500.0,0.00019452,2]
[357934631,1744599039041,-500.0,0.00019452,2]
[357934632,1744599039051,-500.0,0.00019452,2]
[357934633,1744599039060,-500.0,0.00019452,2]
[357934634,1744599039070,-193.43111466,0.00019452,2]
[357934635,1744599039079,-500.0,0.00019452,2]
[357934636,1744599039090,-557.40807536,0.00019452,2]
[357934637,1744599039099,-500.0,0.00019452,2]
[357934638,1744599039109,-500.0,0.00019452,2]
[357934639,1744599039118,-500.0,0.00019452,2]
[357934640,1744599039127,-500.0,0.00019452,2]
[357934641,1744599039137,-176.28,0.00019491,2]
[357934642,1744599039146,-57.61689452,0.00019632,2]
[357934643,1744599039158,-242.38310548,0.00019632,2]
[357934644,1744599039167,-966.57,0.00019643,2]
[357934645,1744599039176,-250.0,0.00019664,2]
[357934646,1744599039187,-250.0,0.00019664,2]
[357934647,1744599039196,-777.53,0.00019726,2]
[357934648,1744599039206,-541.7994398,0.00019726,2]
[357934650,1744599039216,-374.793169,0.00019726,2]
[357934651,1744599039225,-383.6,0.00019726,2]
[357934653,1744599039235,-500.0,0.00019726,2]
[357934655,1744599039244,-49.20425333,0.00019726,2]
[357934656,1744599039257,-1062.4557274,0.00019726,2]
[357934657,1744599039284,-70.55001927,0.00019726,2]
[357934659,1744599039307,-86.15801206,0.00019726,2]
[357934666,1744599039526,-413.84198794,0.00019726,2]
[357934667,1744599039536,-208.55888725,0.00019726,2]
[357934668,1744599039548,-291.44111275,0.00019726,2]
[357934669,1744599039558,-500.0,0.00019726,2]
[357934670,1744599039567,-199.24239328,0.00019726,2]
[357934671,1744599039579,-136.39237161,0.00019726,2]
[357934672,1744599039589,-472.880281,0.00019726,2]
[357934673,1744599039598,-472.880281,0.00019726,2]
[357934674,1744599039608,-151.0,0.00019726,2]
[357934675,1744599039618,-151.0,0.00019726,2]
[357934676,1744599039628,-371.94706639,0.00019726,2]
[357934677,1744599039902,-780.22636357,0.00019726,2]
[357934678,1744599039914,-305.13844794,0.00019726,2]
[357934679,1744599039925,-1707.31004051,0.00019726,2]
[357934680,1744599039937,-269.39000004,0.00019726,2]
[357934681,1744599039968,-1259.96086,0.00019726,2]
[357934682,1744599039986,-362.19722155,0.00019726,2]
[357934683,1744599039996,-158.73673245,0.00019726,2]
[357934684,1744599040009,-341.26326755,0.00019726,2]
[357934685,1744599040020,-500.0,0.00019726,2]
[357934686,1744599040030,-500.0,0.00019726,2]
[357934687,1744599040040,-394.54846663,0.00019726,2]
[357934692,1744599042577,-500.30008613,0.00019178,2]
[357934693,1744599042588,-105.45153337,0.00019726,2]
[357934694,1744599042599,-500.0,0.00019726,2]
[357934695,1744599042609,-2243.979417,0.00019726,2]
[357934696,1744599042620,-151.0,0.00019726,2]
[357934697,1744599042630,-500.0,0.00019726,2]
[357934698,1744599042640,-94.89763479,0.00019726,2]